[Event "Najdorf Memorial-B 2022"]
[Site "Warsaw"]
[Date "2022.07.17"]
[Round "9.7"]
[White "Krogulski, Maksymilian"]
[Black "Prokopiuk, Jakub"]
[Result "1/2-1/2"]
[ECO "B50"]
[WhiteElo "1584"]
[BlackElo "1481"]
[Annotator "NA COMBH"]
[PlyCount "93"]
[EventDate "2022.07.09"]
[EventType "swiss"]
[EventCountry "POL"]
[SourceTitle "playchess.com"]
[Source "ChessBase"]
[SourceQuality "1"]
[TimeControl "40/5400+30:1800+30"]

1. e4 {[%emt 0:00:01]} c5 {[%emt 0:00:06]} 2. Nf3 {[%emt 0:00:05]} d6 {[%emt 0:00:17]} 3. c3 {[%emt 0:00:04]} Nf6 {[%emt 0:00:07]} 4. h3 {[%emt 0:00:03]} g6 {[%emt 0:00:04]} 5. Bd3 {[%emt 0:00:10]} Bg7 {[%emt 0:00:17]} 6. O-O {[%emt 0:00:08]} O-O {[%emt 0:00:04]} 7. Bc2 {[%emt 0:00:04]} e5 {[%emt 0:00:34]} 8. d4 {[%emt 0:00:25]} exd4 {[%emt 0:00:18]} 9. cxd4 {[%emt 0:00:05]} cxd4 {[%emt 0:00:04]} 10. Nxd4 {[%emt 0:02:11]} Nc6 {[%emt 0:00:25]} 11. Nxc6 {[%emt 0:07:23]} bxc6 {[%emt 0:00:03]} 12. Nc3 {[%emt 0:00:15]} Ba6 {[%emt 0:05:11]} 13. Re1 {[%emt 0:01:36]} d5 {[%emt 0:03:00]} 14. exd5 {[%emt 0:00:46]} cxd5 {[%emt 0:00:15]} 15. Bg5 {[%emt 0:00:10]} h6 {[%emt 0:02:07]} 16. Bxf6 {[%emt 0:06:52]} Bxf6 {[%emt 0:00:53]} 17. Qxd5 {[%emt 0:01:50]} Qxd5 {[%emt 0:09:06]} 18. Nxd5 {[%emt 0:00:04]} Bxb2 {[%emt 0:01:07]} 19. Rab1 {[%emt 0:00:11]} Bg7 {[%emt 0:00:41]} 20. Be4 {[%emt 0:02:31]} Rab8 {[%emt 0:11:16]} 21. Ne7+ {[%emt 0:00:57]} Kh7 {[%emt 0:11:55]} 22. Nc6 {[%emt 0:07:31]} Rxb1 {[%emt 0:01:25]} 23. Rxb1 {[%emt 0:00:31]} Re8 {[%emt 0:05:40]} 24. Bd5 {[%emt 0:08:22]} Bd3 {[%emt 0:02:05]} 25. Rb3 {[%emt 0:11:55]} Be4 {[%emt 0:02:04]} 26. Bxe4 {[%emt 0:01:00]} Rxe4 {[%emt 0:00:05]} 27. Ra3 {[%emt 0:00:46]} Rc4 {[%emt 0:02:49]} 28. Ra6 {[%emt 0:00:24]} Rc2 {[%emt 0:08:21]} 29. f3 {[%emt 0:17:18]} Bf6 {[%emt 0:04:33]} 30. Kh2 {[%emt 0:02:46]} Bg5 {[%emt 0:00:50]} 31. h4 {[%emt 0:14:02]} Bxh4 {[%emt 0:02:50]} 32. Kh3 {[%emt 0:00:23]} Bf2 {[%emt 0:01:16]} 33. Nxa7 {[%emt 0:06:38]} Rc1 {[%emt 0:01:29]} 34. Kh2 {[%emt 0:02:50]} h5 {[%emt 0:01:06]} 35. g3 {[%emt 0:05:00]} Rc2 {[%emt 0:04:31]} 36. Nb5 {[%emt 0:01:49]} Rb2 {[%emt 0:03:17]} 37. a4 {[%emt 0:00:04]} Bc5+ {[%emt 0:00:37]} 38. Kh1 {[%emt 0:00:06]} Rb1+ {[%emt 0:01:10]} 39. Kg2 {[%emt 0:00:01]} Rb2+ {[%emt 0:03:11]} 40. Kh1 {[%emt 0:00:00]} g5 {[%emt 0:00:00]} 41. Nd6 {[%emt 0:03:59]} Rb1+ {[%emt 0:17:51]} 42. Kg2 {[%emt 0:02:59]} Rb2+ {[%emt 0:00:29]} 43. Kh1 {[%emt 0:01:35]} Rb1+ {[%emt 0:00:47]} 44. Kg2 {[%emt 0:00:47]} Rb2+ {[%emt 0:00:19]} 45. Kh1 {[%emt 0:00:41]} Rb1+ {[%emt 0:00:08]} 46. Kh2 {[%emt 0:04:06]} Rb2+ {[%emt 0:01:08]} 47. Kh1 {[%emt 0:00:50]} 1/2-1/2

[Event "Najdorf Memorial-B 2022"]
[Site "Warsaw"]
[Date "2022.07.17"]
[Round "9.8"]
[White "Slusarczyk, Anna"]
[Black "Przybylski, Jan"]
[Result "0-1"]
[ECO "E00"]
[WhiteElo "1637"]
[BlackElo "1685"]
[Annotator "NA COMBH"]
[PlyCount "134"]
[EventDate "2022.07.09"]
[EventType "swiss"]
[EventCountry "POL"]
[SourceTitle "playchess.com"]
[Source "ChessBase"]
[SourceQuality "1"]
[TimeControl "40/5400+30:1800+30"]

1. d4 {[%emt 0:00:03]} Nf6 {[%emt 0:00:05]} 2. c4 {[%emt 0:00:09]} e6 {[%emt 0:00:10]} 3. a3 {[%emt 0:00:13]} b6 {[%emt 0:01:14]} 4. Nc3 {[%emt 0:00:07]} Bb7 {[%emt 0:00:12]} 5. Bg5 {[%emt 0:03:03]} Be7 {[%emt 0:00:54]} 6. e3 {[%emt 0:02:10]} O-O {[%emt 0:01:44]} 7. Nf3 {[%emt 0:00:06]} h6 {[%emt 0:02:09]} 8. Bh4 {[%emt 0:02:34]} d5 {[%emt 0:01:11]} 9. cxd5 {[%emt 0:03:24]} Nxd5 {[%emt 0:01:26]} 10. Bxe7 {[%emt 0:09:09]} Qxe7 {[%emt 0:01:39]} 11. Bd3 {[%emt 0:00:26]} Rd8 {[%emt 0:02:35]} 12. O-O {[%emt 0:00:22]} c5 {[%emt 0:01:42]} 13. Qe2 {[%emt 0:17:27]} Nd7 {[%emt 0:05:20]} 14. Rac1 {[%emt 0:06:22]} cxd4 {[%emt 0:15:54]} 15. Nxd4 {[%emt 0:00:18]} Ne5 {[%emt 0:01:53]} 16. Bb1 {[%emt 0:04:43]} Rac8 {[%emt 0:03:01]} 17. f4 {[%emt 0:06:21]} Nxc3 {[%emt 0:02:10]} 18. Rxc3 {[%emt 0:08:07]} Rxc3 {[%emt 0:01:10]} 19. bxc3 {[%emt 0:00:05]} Nd7 {[%emt 0:01:31]} 20. a4 {[%emt 0:11:03]} Qc5 {[%emt 0:02:36]} 21. Qd3 {[%emt 0:11:15]} Nf8 {[%emt 0:04:35]} 22. e4 {[%emt 0:01:50]} Rc8 {[%emt 0:01:53]} 23. Rc1 {[%emt 0:03:28]} Ng6 {[%emt 0:02:14]} 24. Qg3 {[%emt 0:07:31]} Nxf4 {[%emt 0:11:06]} 25. Qxf4 {[%emt 0:00:27]} e5 {[%emt 0:00:15]} 26. Qf2 {[%emt 0:00:06]} exd4 {[%emt 0:01:31]} 27. c4 {[%emt 0:00:18]} Qe5 {[%emt 0:00:43]} 28. Rf1 {[%emt 0:02:14]} f6 {[%emt 0:02:02]} 29. Qc2 {[%emt 0:00:55]} Re8 {[%emt 0:01:34]} 30. Rf5 {[%emt 0:00:32]} Qxe4 {[%emt 0:01:40]} 31. Qxe4 {[%emt 0:00:32]} Bxe4 {[%emt 0:00:25]} 32. Bxe4 {[%emt 0:00:13]} Rxe4 {[%emt 0:00:01]} 33. a5 {[%emt 0:00:29]} Re1+ {[%emt 0:01:17]} 34. Kf2 {[%emt 0:00:30]} Re5 {[%emt 0:00:14]} 35. Rf4 {[%emt 0:00:44]} Rxa5 {[%emt 0:00:14]} 36. Rxd4 {[%emt 0:00:06]} Kf7 {[%emt 0:00:51]} 37. Kf3 {[%emt 0:01:00]} Rc5 {[%emt 0:01:50]} 38. Rd7+ {[%emt 0:00:08]} Kg6 {[%emt 0:00:08]} 39. Rxa7 {[%emt 0:00:31]} Rxc4 {[%emt 0:00:10]} 40. Rb7 {[%emt 0:00:00]} Rb4 {[%emt 0:00:00]} 41. h3 {[%emt 0:00:27]} f5 {[%emt 0:02:38]} 42. Kg3 {[%emt 0:01:20]} Rb3+ {[%emt 0:00:41]} 43. Kf2 {[%emt 0:04:51]} Kf6 {[%emt 0:00:38]} 44. Rc7 {[%emt 0:00:24]} Rb2+ {[%emt 0:09:16]} 45. Kf3 {[%emt 0:00:50]} Rb3+ {[%emt 0:00:52]} 46. Kf2 {[%emt 0:00:07]} Rb4 {[%emt 0:00:47]} 47. Kf3 {[%emt 0:02:33]} Re4 {[%emt 0:00:50]} 48. g4 {[%emt 0:06:34]} Re7 {[%emt 0:00:30]} 49. Rc6+ {[%emt 0:04:56]} Re6 {[%emt 0:00:22]} 50. Rc8 {[%emt 0:01:03]} fxg4+ {[%emt 0:00:30]} 51. Kxg4 {[%emt 0:00:35]} g6 {[%emt 0:02:14]} 52. Rf8+ {[%emt 0:02:13]} Ke5 {[%emt 0:01:42]} 53. Rh8 {[%emt 0:01:37]} h5+ {[%emt 0:01:01]} 54. Kg5 {[%emt 0:00:24]} Kd4 {[%emt 0:00:26]} 55. Rd8+ {[%emt 0:00:44]} Kc4 {[%emt 0:00:21]} 56. Rc8+ {[%emt 0:00:04]} Kb4 {[%emt 0:00:13]} 57. Rc1 {[%emt 0:04:39]} b5 {[%emt 0:00:59]} 58. Rb1+ {[%emt 0:00:09]} Kc4 {[%emt 0:01:19]} 59. Rc1+ {[%emt 0:00:04]} Kd3 {[%emt 0:00:54]} 60. Rb1 {[%emt 0:01:07]} Rb6 {[%emt 0:00:26]} 61. Kf4 {[%emt 0:01:36]} b4 {[%emt 0:00:44]} 62. Ke5 {[%emt 0:00:05]} b3 {[%emt 0:00:15]} 63. Kd5 {[%emt 0:00:04]} b2 {[%emt 0:00:10]} 64. Kc5 {[%emt 0:00:04]} Kc2 {[%emt 0:00:19]} 65. Rg1 {[%emt 0:00:14]} b1=Q {[%emt 0:00:08]} 66. Rg2+ {[%emt 0:00:17]} Kd3 {[%emt 0:00:12]} 67. Rg3+ {[%emt 0:00:02]} Ke4 {[%emt 0:00:09]} 0-1

[Event "Najdorf Memorial-B 2022"]
[Site "Warsaw"]
[Date "2022.07.17"]
[Round "9.9"]
[White "Szewczak, Andrzej"]
[Black "Terkiewicz, Bruno"]
[Result "0-1"]
[ECO "A00"]
[WhiteElo "1694"]
[BlackElo "1473"]
[Annotator "NA COMBH"]
[PlyCount "126"]
[EventDate "2022.07.09"]
[EventType "swiss"]
[EventCountry "POL"]
[SourceTitle "playchess.com"]
[Source "ChessBase"]
[SourceQuality "1"]
[TimeControl "40/5400+30:1800+30"]

1. b4 {[%emt 0:00:01]} c6 {[%emt 0:00:03]} 2. e3 {[%emt 0:00:03]} Qb6 {[%emt 0:00:10]} 3. a3 {[%emt 0:00:20]} a5 {[%emt 0:00:20]} 4. Nc3 {[%emt 0:03:13]} axb4 {[%emt 0:00:44]} 5. Rb1 {[%emt 0:00:01]} Nf6 {[%emt 0:04:47]} 6. axb4 {[%emt 0:00:08]} d5 {[%emt 0:00:46]} 7. b5 {[%emt 0:00:45]} Qc7 {[%emt 0:02:46]} 8. Nf3 {[%emt 0:01:30]} Bg4 {[%emt 0:00:37]} 9. h3 {[%emt 0:00:21]} Bh5 {[%emt 0:01:55]} 10. bxc6 {[%emt 0:01:21]} bxc6 {[%emt 0:00:12]} 11. d3 {[%emt 0:00:46]} e6 {[%emt 0:03:00]} 12. Bd2 {[%emt 0:00:56]} Be7 {[%emt 0:00:32]} 13. g4 {[%emt 0:00:49]} Bg6 {[%emt 0:00:06]} 14. Nh4 {[%emt 0:00:13]} Nfd7 {[%emt 0:09:28]} 15. Nxg6 {[%emt 0:01:03]} hxg6 {[%emt 0:01:44]} 16. Bg2 {[%emt 0:00:13]} Nf6 {[%emt 0:24:56]} 17. Rb3 {[%emt 0:09:54]} Nbd7 {[%emt 0:01:27]} 18. Ne2 {[%emt 0:03:53]} Nc5 {[%emt 0:01:12]} 19. Rb1 {[%emt 0:00:09]} e5 {[%emt 0:02:37]} 20. Ng3 {[%emt 0:01:04]} Ne6 {[%emt 0:02:02]} 21. c4 {[%emt 0:01:37]} d4 {[%emt 0:09:00]} 22. Qf3 {[%emt 0:01:07]} Rc8 {[%emt 0:01:06]} 23. Qd1 {[%emt 0:03:15]} Nc5 {[%emt 0:06:02]} 24. Qc2 {[%emt 0:00:43]} Rd8 {[%emt 0:01:57]} 25. e4 {[%emt 0:01:45]} Nfd7 {[%emt 0:03:26]} 26. O-O {[%emt 0:02:59]} g5 {[%emt 0:03:00]} 27. Nf5 {[%emt 0:01:03]} Ne6 {[%emt 0:01:49]} 28. Rfc1 {[%emt 0:02:35]} Ndc5 {[%emt 0:02:46]} 29. Ra1 {[%emt 0:01:00]} Rb8 {[%emt 0:00:35]} 30. Rcb1 {[%emt 0:00:23]} Kd7 {[%emt 0:01:32]} 31. Ba5 {[%emt 0:01:13]} Rxb1+ {[%emt 0:04:45]} 32. Qxb1 {[%emt 0:00:01]} Qb7 {[%emt 0:00:11]} 33. Qxb7+ {[%emt 0:01:15]} Nxb7 {[%emt 0:00:06]} 34. Bb6 {[%emt 0:01:15]} Bc5 {[%emt 0:00:48]} 35. Ra7 {[%emt 0:00:27]} Rb8 {[%emt 0:00:10]} 36. Bxc5 Nexc5 {[%emt 0:00:06]} 37. Bf1 {[%emt 0:00:33]} g6 {[%emt 0:00:15]} 38. Ng3 {[%emt 0:00:17]} Kc7 {[%emt 0:02:17]} 39. Be2 {[%emt 0:00:34]} Kb6 {[%emt 0:01:10]} 40. Ra2 {[%emt 0:00:00]} Ne6 {[%emt 0:00:00]} 41. Nh1 {[%emt 0:01:44]} Nf4 {[%emt 0:00:58]} 42. Bf1 {[%emt 0:00:01]} Nc5 {[%emt 0:00:19]} 43. Rd2 {[%emt 0:00:51]} Ra8 {[%emt 0:04:27]} 44. f3 {[%emt 0:00:35]} Ra3 {[%emt 0:00:31]} 45. Nf2 {[%emt 0:00:07]} Ka5 {[%emt 0:01:02]} 46. Kh2 {[%emt 0:01:17]} Kb4 {[%emt 0:02:53]} 47. Rb2+ {[%emt 0:00:19]} Nb3 {[%emt 0:01:27]} 48. Nh1 {[%emt 0:00:48]} Kc3 {[%emt 0:00:22]} 49. Rf2 {[%emt 0:00:34]} Nxd3 {[%emt 0:01:43]} 50. Bxd3 {[%emt 0:00:13]} Kxd3 {[%emt 0:00:04]} 51. h4 {[%emt 0:00:20]} gxh4 {[%emt 0:01:04]} 52. f4 {[%emt 0:00:01]} Kxe4 {[%emt 0:00:16]} 53. fxe5 {[%emt 0:00:08]} Kxe5 {[%emt 0:00:28]} 54. Rxf7 {[%emt 0:00:01]} Ra2+ {[%emt 0:00:14]} 55. Kh3 {[%emt 0:00:01]} d3 {[%emt 0:02:01]} 56. Nf2 {[%emt 0:00:02]} Rxf2 {[%emt 0:01:46]} 57. Rxf2 {[%emt 0:00:01]} d2 {[%emt 0:00:08]} 58. Rf1 {[%emt 0:00:02]} g5 {[%emt 0:00:06]} 59. Kg2 {[%emt 0:00:16]} Kd4 {[%emt 0:00:04]} 60. Kf2 {[%emt 0:00:13]} Kd3 {[%emt 0:00:05]} 61. Rh1 {[%emt 0:00:25]} Kc2 {[%emt 0:00:41]} 62. Ke2 {[%emt 0:00:20]} Nc1+ {[%emt 0:00:08]} 63. Ke3 {[%emt 0:00:21]} d1=Q 0-1

[Event "Najdorf Memorial-B 2022"]
[Site "Warsaw"]
[Date "2022.07.17"]
[Round "9.10"]
[White "Nocek, Dominik"]
[Black "Napieralski, Lucjan"]
[Result "1-0"]
[ECO "C05"]
[WhiteElo "1682"]
[BlackElo "1414"]
[Annotator "NA COMBH"]
[PlyCount "101"]
[EventDate "2022.07.09"]
[EventType "swiss"]
[EventCountry "POL"]
[SourceTitle "playchess.com"]
[Source "ChessBase"]
[SourceQuality "1"]
[TimeControl "40/5400+30:1800+30"]

1. e4 {[%emt 0:00:02]} e6 {[%emt 0:00:03]} 2. d4 {[%emt 0:00:05]} d5 {[%emt 0:00:02]} 3. Nd2 {[%emt 0:00:08]} Nf6 {[%emt 0:00:05]} 4. e5 {[%emt 0:00:07]} Nfd7 {[%emt 0:00:03]} 5. Bd3 {[%emt 0:00:26]} c5 {[%emt 0:00:03]} 6. c3 {[%emt 0:00:09]} Nc6 {[%emt 0:00:04]} 7. Ne2 {[%emt 0:00:12]} Qb6 {[%emt 0:00:07]} 8. Nf3 {[%emt 0:00:22]} Be7 {[%emt 0:01:14]} 9. O-O {[%emt 0:00:29]} O-O {[%emt 0:00:19]} 10. Bc2 {[%emt 0:08:37]} Re8 {[%emt 0:02:52]} 11. Qd3 {[%emt 0:32:10]} Nf8 {[%emt 0:00:16]} 12. Ng5 {[%emt 0:07:34]} Bxg5 {[%emt 0:06:57]} 13. Bxg5 {[%emt 0:00:03]} cxd4 {[%emt 0:00:09]} 14. cxd4 {[%emt 0:02:08]} Nb4 {[%emt 0:00:26]} 15. Qd2 {[%emt 0:00:32]} Nxc2 {[%emt 0:00:35]} 16. Qxc2 {[%emt 0:00:03]} Bd7 {[%emt 0:00:29]} 17. Qd2 {[%emt 0:04:37]} Bb5 {[%emt 0:03:41]} 18. Rfd1 {[%emt 0:02:05]} Rac8 {[%emt 0:02:23]} 19. Nc3 {[%emt 0:02:18]} Rc4 {[%emt 0:01:29]} 20. Be3 {[%emt 0:05:41]} Rec8 {[%emt 0:01:30]} 21. Rab1 {[%emt 0:12:26]} a5 {[%emt 0:06:24]} 22. Rdc1 {[%emt 0:04:59]} a4 {[%emt 0:03:43]} 23. g3 {[%emt 0:03:31]} Nd7 {[%emt 0:03:45]} 24. b3 {[%emt 0:03:45]} axb3 {[%emt 0:04:03]} 25. Rxb3 {[%emt 0:00:12]} Qa6 {[%emt 0:07:20]} 26. Rxb5 {[%emt 0:03:50]} Rxc3 {[%emt 0:00:09]} 27. Rxc3 {[%emt 0:00:34]} Rxc3 {[%emt 0:00:09]} 28. Rxd5 {[%emt 0:04:31]} exd5 {[%emt 0:03:46]} 29. Qxc3 {[%emt 0:00:02]} Nb6 {[%emt 0:01:20]} 30. Qc7 {[%emt 0:01:27]} h6 {[%emt 0:00:40]} 31. Qd8+ {[%emt 0:00:39]} Kh7 {[%emt 0:00:13]} 32. Qe7 {[%emt 0:00:52]} Qxa2 {[%emt 0:02:10]} 33. Qxf7 {[%emt 0:00:07]} Qb1+ {[%emt 0:01:05]} 34. Kg2 {[%emt 0:00:02]} Qe4+ {[%emt 0:00:57]} 35. Qf3 {[%emt 0:00:10]} Qxf3+ {[%emt 0:02:44]} 36. Kxf3 {[%emt 0:00:01]} Nc4 {[%emt 0:00:07]} 37. Ke2 {[%emt 0:02:27]} Kg6 {[%emt 0:02:30]} 38. g4 {[%emt 0:00:48]} h5 {[%emt 0:02:01]} 39. h3 {[%emt 0:00:31]} hxg4 {[%emt 0:00:16]} 40. hxg4 {[%emt 0:00:00]} Kf7 {[%emt 0:00:00]} 41. Kd3 {[%emt 0:00:59]} Ke6 {[%emt 0:01:56]} 42. Kc3 {[%emt 0:06:02]} Kd7 {[%emt 0:00:16]} 43. Kb4 {[%emt 0:01:41]} Kc6 {[%emt 0:00:33]} 44. Bg5 {[%emt 0:02:06]} Nb2 {[%emt 0:02:02]} 45. Be3 {[%emt 0:05:47]} Nd3+ {[%emt 0:09:08]} 46. Kc3 {[%emt 0:00:50]} Ne1 {[%emt 0:00:05]} 47. f4 {[%emt 0:02:58]} Nf3 {[%emt 0:03:42]} 48. f5 {[%emt 0:03:35]} Nh2 {[%emt 0:09:09]} 49. g5 {[%emt 0:01:06]} Nf3 {[%emt 0:00:34]} 50. f6 {[%emt 0:03:01]} gxf6 {[%emt 0:00:10]} 51. g6 {[%emt 0:01:09]} 1-0

[Event "Najdorf Memorial-B 2022"]
[Site "Warsaw"]
[Date "2022.07.17"]
[Round "9.11"]
[White "Mossakowski, Jakub"]
[Black "Kurowski, Maciej"]
[Result "1/2-1/2"]
[ECO "D30"]
[WhiteElo "1487"]
[BlackElo "1601"]
[Annotator "NA COMBH"]
[PlyCount "23"]
[EventDate "2022.07.09"]
[EventType "swiss"]
[EventCountry "POL"]
[SourceTitle "playchess.com"]
[Source "ChessBase"]
[SourceQuality "1"]
[TimeControl "40/5400+30:1800+30"]

1. Nf3 {[%emt 0:00:04]} d5 {[%emt 0:00:09]} 2. d4 {[%emt 0:00:04]} Nf6 {[%emt 0:00:08]} 3. c4 {[%emt 0:00:08]} c6 {[%emt 0:00:10]} 4. e3 {[%emt 0:00:08]} e6 {[%emt 0:00:13]} 5. Nbd2 {[%emt 0:00:53]} Nbd7 {[%emt 0:02:47]} 6. Bd3 {[%emt 0:00:30]} dxc4 {[%emt 0:02:48]} 7. Nxc4 {[%emt 0:00:11]} c5 {[%emt 0:02:34]} 8. O-O {[%emt 0:00:49]} b5 {[%emt 0:07:00]} 9. Nce5 {[%emt 0:01:50]} c4 {[%emt 0:00:09]} 10. Be2 {[%emt 0:01:02]} Bb7 {[%emt 0:01:00]} 11. b3 {[%emt 0:01:04]} Nd5 {[%emt 0:10:56]} 12. bxc4 1/2-1/2

[Event "Najdorf Memorial-B 2022"]
[Site "Warsaw"]
[Date "2022.07.17"]
[Round "9.12"]
[White "Trochimczuk, Szymon"]
[Black "Bartoszczuk, Adam"]
[Result "1/2-1/2"]
[ECO "E61"]
[WhiteElo "1480"]
[BlackElo "1596"]
[Annotator "NA COMBH"]
[PlyCount "88"]
[EventDate "2022.07.09"]
[EventType "swiss"]
[EventCountry "POL"]
[SourceTitle "playchess.com"]
[Source "ChessBase"]
[SourceQuality "1"]
[TimeControl "40/5400+30:1800+30"]

1. d4 {[%emt 0:00:01]} Nf6 {[%emt 0:00:04]} 2. c4 {[%emt 0:00:04]} g6 {[%emt 0:00:04]} 3. Nc3 {[%emt 0:00:03]} Bg7 {[%emt 0:00:04]} 4. Nf3 {[%emt 0:00:03]} d6 {[%emt 0:00:05]} 5. h3 {[%emt 0:00:04]} O-O {[%emt 0:00:23]} 6. Bf4 {[%emt 0:00:03]} Nbd7 {[%emt 0:08:20]} 7. e3 {[%emt 0:00:06]} c5 {[%emt 0:05:13]} 8. Be2 {[%emt 0:02:28]} Qb6 {[%emt 0:01:21]} 9. Qd2 {[%emt 0:01:30]} cxd4 {[%emt 0:08:02]} 10. exd4 {[%emt 0:00:25]} Re8 {[%emt 0:00:48]} 11. Be3 {[%emt 0:05:28]} Qd8 {[%emt 0:04:24]} 12. O-O {[%emt 0:03:19]} e5 {[%emt 0:02:11]} 13. dxe5 {[%emt 0:00:44]} dxe5 {[%emt 0:00:15]} 14. Nb5 {[%emt 0:03:18]} Nb6 {[%emt 0:13:02]} 15. Nd6 {[%emt 0:06:36]} Re7 {[%emt 0:04:55]} 16. c5 {[%emt 0:02:31]} e4 {[%emt 0:04:10]} 17. Nxc8 {[%emt 0:11:57]} Rd7 {[%emt 0:08:16]} 18. Nd4 {[%emt 0:05:34]} Nxc8 {[%emt 0:00:18]} 19. Bb5 {[%emt 0:01:41]} Rd5 {[%emt 0:05:38]} 20. Rac1 {[%emt 0:06:00]} Ne7 {[%emt 0:02:35]} 21. Bc4 {[%emt 0:05:09]} Rd7 {[%emt 0:01:14]} 22. Bb5 {[%emt 0:02:50]} Rd5 {[%emt 0:00:28]} 23. Bc4 {[%emt 0:01:18]} Rd7 {[%emt 0:00:22]} 24. Qb4 {[%emt 0:04:12]} Ned5 {[%emt 0:07:38]} 25. Qb3 {[%emt 0:02:30]} Rc8 {[%emt 0:01:23]} 26. Nb5 {[%emt 0:02:48]} Qf8 {[%emt 0:11:41]} 27. Nxa7 {[%emt 0:04:47]} Nxe3 {[%emt 0:01:09]} 28. Qxe3 {[%emt 0:00:15]} Ra8 {[%emt 0:03:54]} 29. Nb5 {[%emt 0:00:46]} Bh6 {[%emt 0:00:07]} 30. Qc3 {[%emt 0:03:18]} Bxc1 {[%emt 0:00:11]} 31. Rxc1 {[%emt 0:00:36]} Qg7 {[%emt 0:01:01]} 32. Nd6 {[%emt 0:00:58]} Rad8 {[%emt 0:01:29]} 33. Qb3 {[%emt 0:01:27]} Ne8 {[%emt 0:05:16]} 34. Nxb7 {[%emt 0:00:05]} Rb8 {[%emt 0:00:15]} 35. c6 {[%emt 0:00:17]} Rd2 {[%emt 0:00:26]} 36. Rc3 {[%emt 0:03:20]} Qf6 {[%emt 0:00:18]} 37. f3 {[%emt 0:00:45]} Qh4 {[%emt 0:00:59]} 38. Qb6 {[%emt 0:02:00]} Qg3 {[%emt 0:00:45]} 39. Bf1 {[%emt 0:00:37]} Qc7 {[%emt 0:00:18]} 40. Qb4 {[%emt 0:00:00]} Rd1 {[%emt 0:00:00]} 41. fxe4 {[%emt 0:11:56]} Nd6 {[%emt 0:02:47]} 42. b3 {[%emt 0:14:43]} Nxb7 {[%emt 0:01:19]} 43. cxb7 {[%emt 0:00:08]} Qxb7 {[%emt 0:00:10]} 44. Qxb7 {[%emt 0:02:45]} Rxb7 {[%emt 0:00:01]} 1/2-1/2

[Event "Najdorf Memorial-B 2022"]
[Site "Warsaw"]
[Date "2022.07.17"]
[Round "9.13"]
[White "Chiszko, Oskar"]
[Black "Chekhani, Anna"]
[Result "1-0"]
[ECO "B80"]
[WhiteElo "1446"]
[BlackElo "1575"]
[Annotator "NA COMBH"]
[PlyCount "56"]
[EventDate "2022.07.09"]
[EventType "swiss"]
[EventCountry "POL"]
[SourceTitle "playchess.com"]
[Source "ChessBase"]
[SourceQuality "1"]
[TimeControl "40/5400+30:1800+30"]

1. e4 {[%emt 0:00:01]} c5 {[%emt 0:00:11]} 2. Nf3 {[%emt 0:00:07]} e6 {[%emt 0:00:11]} 3. d4 {[%emt 0:00:08]} cxd4 {[%emt 0:00:07]} 4. Nxd4 {[%emt 0:00:12]} Nf6 {[%emt 0:00:07]} 5. Nc3 {[%emt 0:01:31]} d6 {[%emt 0:00:13]} 6. Be3 {[%emt 0:00:21]} a6 {[%emt 0:00:25]} 7. Be2 {[%emt 0:01:06]} Qc7 {[%emt 0:02:23]} 8. Qd2 {[%emt 0:00:43]} b5 {[%emt 0:02:47]} 9. f3 {[%emt 0:00:43]} Bb7 {[%emt 0:05:31]} 10. O-O-O {[%emt 0:02:28]} Nbd7 {[%emt 0:12:26]} 11. g4 {[%emt 0:00:55]} h6 {[%emt 0:01:12]} 12. h4 {[%emt 0:01:11]} b4 {[%emt 0:02:51]} 13. Nb1 {[%emt 0:02:01]} d5 {[%emt 0:01:14]} 14. g5 {[%emt 0:01:48]} Nh5 {[%emt 0:02:24]} 15. g6 {[%emt 0:06:18]} e5 {[%emt 0:16:09]} 16. gxf7+ {[%emt 0:01:32]} Kxf7 {[%emt 0:00:20]} 17. f4 {[%emt 0:02:11]} Ng3 {[%emt 0:04:55]} 18. fxe5 {[%emt 0:00:25]} Nxh1 19. e6+ {[%emt 0:00:31]} Kg8 {[%emt 0:02:48]} 20. exd7 Ng3 {[%emt 0:00:32]} 21. Bg4 {[%emt 0:00:50]} Nxe4 {[%emt 0:02:47]} 22. Be6+ {[%emt 0:00:08]} Kh7 {[%emt 0:00:25]} 23. Bf5+ {[%emt 0:00:07]} Kg8 {[%emt 0:08:34]} 24. Bxe4 {[%emt 0:00:36]} Qxd7 {[%emt 0:00:23]} 25. Bf5 {[%emt 0:00:18]} Qe7 {[%emt 0:01:14]} 26. Be6+ {[%emt 0:00:11]} Kh7 {[%emt 0:00:06]} 27. Qd3+ {[%emt 0:00:07]} g6 {[%emt 0:00:12]} 28. Rg1 {[%emt 0:00:41]} Qe8 {[%emt 0:07:01]} 1-0